Workbook

Sheet Explanation
A3: This program was created to calculate and graph the Efficient Frontier for portfolio of chosen stocks based the average required return of the minimum and maximum of the chosen stock returns.
A7: To calculate and graph the Efficient Frontier, please press the Start button and follow the instructions.
M90: Get Historical Prices for:
N94: ADVERTISEMENT
E95: Eg. Jan 1, 2003 | G95: Daily | N95: Click Here
G96: Weekly
G97: Monthly
G98: Dividends Only
F105: Open | H105: High | I105: Low | J105: Close | K105: Avg Vol | L105: Adj Close*
F106: $ 0.17 Dividend
F107: 11.83 | H107: 12.57 | I107: 10.15 | J107: 11.19 | K107: 26938200 | L107: 10.85
F108: 22.35 | H108: 22.35 | I108: 9 | J108: 11.5 | K108: 32290200 | L108: 10.99
F109: 31.75 | H109: 32 | I109: 20.93 | J109: 22.58 | K109: 19154500 | L109: 21.59
F110: $ 0.17 Dividend
F111: 33.75 | H111: 33.75 | I111: 30.65 | J111: 32.13 | K111: 10185500 | L111: 30.72
F112: 35.28 | H112: 35.66 | I112: 31.02 | J112: 33.75 | K112: 17425100 | L112: 32.09
F113: 40.48 | H113: 44.24 | I113: 34.88 | J113: 35.62 | K113: 13591100 | L113: 33.87
F114: 34.67 | H114: 44.77 | I114: 33.65 | J114: 40.59 | K114: 15743400 | L114: 38.6
F115: $ 0.17 Dividend
F116: 36.18 | H116: 39.44 | I116: 33.76 | J116: 34.78 | K116: 11309000 | L116: 33.07
F117: 37.17 | H117: 39.67 | I117: 33.8 | J117: 36.06 | K117: 16044700 | L117: 34.12
F118: $ 0.17 Dividend
F119: 33.67 | H119: 39.62 | I119: 31.9 | J119: 37.14 | K119: 14882300 | L119: 35.14
F120: 36.46 | H120: 36.78 | I120: 26.69 | J120: 33.09 | K120: 16898800 | L120: 31.15
F121: 36.48 | H121: 37.98 | I121: 33.22 | J121: 36.55 | K121: 8942600 | L121: 34.41
F122: 39.21 | H122: 39.35 | I122: 34.52 | J122: 36.37 | K122: 11610100 | L122: 34.24
F123: $ 0.17 Dividend
F124: 39.13 | H124: 40.7 | I124: 36.68 | J124: 39.59 | K124: 11858900 | L124: 37.27
F125: 36.35 | H125: 39.5 | I125: 33.23 | J125: 39.12 | K125: 13003600 | L125: 36.67
F126: 37.8 | H126: 38.43 | I126: 30.25 | J126: 36.53 | K126: 18641900 | L126: 34.24
F127: $ 0.17 Dividend
F128: 40.68 | H128: 48.77 | I128: 37.25 | J128: 38.2 | K128: 26595400 | L128: 35.64
F129: 41.4 | H129: 42.9 | I129: 37.84 | J129: 40.53 | K129: 10925100 | L129: 37.82
F130: $ 0.17 Dividend
F131: 35.64 | H131: 41.55 | I131: 34.39 | J131: 41.28 | K131: 16588100 | L131: 38.52
F132: 34.08 | H132: 36.5 | I132: 33.63 | J132: 35.49 | K132: 9870200 | L132: 32.95
F133: 32.71 | H133: 34.56 | I133: 31.61 | J133: 33.9 | K133: 9447300 | L133: 31.48
F134: 32.54 | H134: 36.05 | I134: 32.07 | J134: 33.41 | K134: 12043100 | L134: 31.02
F135: $ 0.17 Dividend
F136: 30.05 | H136: 32.62 | I136: 28.09 | J136: 32.3 | K136: 9861900 | L136: 29.99
F137: $ 0.05 Dividend
F138: 31.18 | H138: 31.33 | I138: 28.86 | J138: 30.01 | K138: 5528400 | L138: 27.72
F139: 28.86 | H139: 31.24 | I139: 27.69 | J139: 31.17 | K139: 7437100 | L139: 28.74
C149: • | D149: Splits

Sheet Stocks (hidden)
B1: http://www.eoddata.com/Default.aspx
A2: From | B2: AMEX, NASDAQ, NYSE
A3: Symbol | B3: Name
A4: A | B4: Agilent Technologies Inc.
A5: AA | B5: Alcoa Inc.
A6: AA.P | B6: Alcoa Inc.
A7: AACC | B7: Asset Acceptance Capital Corp.
A8: AAI | B8: AirTran Holdings Inc.
A9: AAME | B9: Atlantic American Corporation
A10: AAN | B10: AARON'S INC.
A11: AAON | B11: AAON Inc.
A12: AAP | B12: Advance Auto Parts Inc
A13: AAPL | B13: Apple Inc.
A14: AAR | B14: AMR Corporation
A15: AATI | B15: Advanced Analogic Technologies Inc.
A16: AAU | B16: Almaden Minerals Ltd.
A17: AAV | B17: ADVANTAGE ENERGY INCOME FUND
A18: AAWW | B18: Atlas Air Worldwide Holdings
A19: AAXJ | B19: iShares Trust
A20: AB | B20: Alliance Capital Management Holding L.P.
A21: ABA | B21: Alabama Power Company
A22: ABAT | B22: Advanced Battery Technologies Inc.
A23: ABAX | B23: ABAXIS Inc.
A24: ABB | B24: ABB Ltd
A25: ABBC | B25: Abington Bancorp Inc.
A26: ABC | B26: AmerisourceBergen Corporation (Holding Co)
A27: ABCB | B27: Ameris Bancorp
A28: ABCD | B28: CAMBIUM LEARNING GROUP INC.
A29: ABCO | B29: Advisory Board Company (The)
A30: ABCW | B30: Anchor BanCorp Wisconsin Inc.
A31: ABD | B31: Acco Brands Corporation
A32: ABFS | B32: Arkansas Best Corporation
A33: ABG | B33: Asbury Automotive Group Inc
A34: ABI | B34: Applera Corp
A35: ABII | B35: Abraxis Bioscience Inc.
A36: ABIO | B36: ARCA BIOPHARMA INC.
A37: ABK | B37: Ambac Financial Group Inc.
A38: ABK-Z | B38: Ambac Financial Group Inc.
A39: ABL | B39: American Biltrite Inc.
A40: ABM | B40: ABM Industries Incorporated
A41: ABMD | B41: ABIOMED Inc.
A42: ABR | B42: Arbor Realty Trust
A43: ABT | B43: Abbott Laboratories
A44: ABTL | B44: Autobytel Inc.
A45: ABV | B45: Companhia de Bebidas das Americas - AmBev
A46: ABV.C | B46: Companhia de Bebidas das Americas - AmBev
A47: ABVT | B47: ABOVENET INC
A48: ABW-A | B48: Associated Banc-Corp
A49: ABX | B49: Barrick Gold Corporation
A50: ACAD | B50: ACADIA Pharmaceuticals Inc.
A51: ACAP | B51: American Physicians Capital Inc.
A52: ACAS | B52: American Capital Ltd.
A53: ACAT | B53: Arctic Cat Inc.
A54: ACC | B54: American Campus Communities Inc
A55: ACCL | B55: Accelrys Inc.
A56: ACE | B56: Ace
A57: ACET | B57: Aceto Corporation
A58: ACF | B58: AmeriCredit Corporation
A59: ACFC | B59: Atlantic Coast Federal Corporation
A60: ACFN | B60: Acorn Energy Inc.
A61: ACG | B61: Alliance Capital Management Holding L.P.
A62: ACGL | B62: Arch Capital Group Ltd.
A63: ACGY | B63: Acergy S.A.
A64: ACH | B64: Aluminum Corporation of China Ltd
A65: ACHN | B65: Achillion Pharmaceuticals Inc.
A66: ACI | B66: Arch Coal Inc.
A67: ACIW | B67: ACI Worldwide Inc.
A68: ACL | B68: Alcon Inc
A69: ACLI | B69: American Commercial Lines Inc
A70: ACLS | B70: Axcelis Technologies Inc.
A71: ACM | B71: Aecom Technology Corporation
A72: ACMR | B72: A.C. Moore Arts & Crafts Inc.
A73: ACN | B73: Accenture Ltd.
A74: ACO | B74: Amcol International Corporation
A75: ACOM | B75: ANCESTRY.COM INC.- YAHOO! FINAN
A76: ACOR | B76: Acorda Therapeutics Inc.
A77: ACPW | B77: Active Power Inc.
A78: ACTG | B78: Acacia Research Corporation
A79: ACTI | B79: ActivIdentity Corporation
A80: ACTL | B80: Actel Corporation
A81: ACTS | B81: Actions Semiconductor Co. Ltd.
A82: ACTU | B82: Actuate Corporation
A83: ACU | B83: Acme United Corporation.
A84: ACUR | B84: Acura Pharmaceuticals Inc.
A85: ACV | B85: Alberto-Culver Company
A86: ACWI | B86: iShares MSCI ACWI Index Fund
A87: ACWX | B87: iShares MSCI ACWI ex US Index Fund
A88: ACXM | B88: Acxiom Corporation
A89: ACY | B89: AeroCentury Corp.
A90: ADAM | B90: A.D.A.M. Inc.
A91: ADAT | B91: Authentidate Holding Corp.
A92: ADBE | B92: Adobe Systems Incorporated
A93: ADC | B93: Agree Realty Corporation
A94: ADCT | B94: ADC Telecommunications Inc.
A95: ADEP | B95: Adept Technology Inc.
A96: ADES | B96: ADA-ES Inc.
A97: ADF | B97: BANK OF AMERICA CORPORATION STR
A98: ADG | B98: Allied Defense Group (The)
A99: ADGE | B99: AMERICAN DG ENERGY
A100: ADGF | B100: Adams Golf Inc.
A101: ADI | B101: Analog Devices Inc.
A102: ADK | B102: Adcare Health Systems Inc
A103: ADLR | B103: Adolor Corporation
A104: ADM | B104: Archer-Daniels-Midland Company
A105: ADM-A | B105: Archer-Daniels-Midland Company
A106: ADP | B106: AUTOMATIC DATA PROCS
A107: ADPI | B107: American Dental Partners Inc.
A108: ADPT | B108: Adaptec Inc.
A109: ADRA | B109: BLDRS Asia 50 ADR Index Fund
A110: ADRD | B110: BLDRS Developed Markets 100 ADR Index Fund
A111: ADRE | B111: BLDRS Emerging Markets 50 ADR Index Fund
A112: ADRU | B112: BLDRS Europe 100 ADR Index Fund
A113: ADS | B113: Alliance Data Systems Corporation
A114: ADSK | B114: Autodesk Inc.
A115: ADTN | B115: ADTRAN Inc.
A116: ADUS | B116: ADDUS HOMECARE CORPORATION- YAHO
A117: ADVS | B117: Advent Software Inc.
A118: ADX | B118: Adams Express Company (The)
A119: ADY | B119: AMERICAN DAIRY INC
A120: ADZ | B120: DB AGRICUL SHORT ETN
A121: AE | B121: Adams Resources & Energy Inc.
A122: AEA | B122: Advance America Cash Advance Centers Inc.
A123: AEB | B123: Aegon NV
A124: AEC | B124: Associated Estates Realty Corporation
A125: AEC-B | B125: Associated Estates Realty Corporation
A126: AED | B126: Aegon NV
A127: AEE | B127: Ameren Corporation
A128: AEF | B128: Aegon NV
A129: AEG | B129: Aegon NV
A130: AEH | B130: Aegon NV
A131: AEHR | B131: Aehr Test Systems
A132: AEIS | B132: Advanced Energy Industries Inc.
A133: AEL | B133: American Equity Investment Life Holding Company
A134: AEM | B134: Agnico-Eagle Mines
A135: AEN | B135: Austral Pacific Energy Ltd.
A136: AEO | B136: American Eagle Outfitters Inc.
A137: AEP | B137: American Electric Power Company Inc.
A138: AEP-A | B138: American Electric Power Company Inc.
A139: AEPI | B139: AEP Industries Inc.
A140: AER | B140: Aercap Holdings N.V.
A141: AERG | B141: Applied Energetics Inc
A142: AES | B142: Aes Trust
A143: AES-C | B143: Aes Trust
A144: AET | B144: Aetna Inc.
A145: AETI | B145: American Electric Technologies Inc.
A146: AEV | B146: Aegon NV
A147: AEY | B147: ADDvantage Technologies Group Inc.
A148: AEZ | B148: American Oil & Gas Inc.
A149: AEZS | B149: AEterna Zentaris Inc.
A150: AF | B150: Astoria Financial Corporation
A151: AFAM | B151: Almost Family Inc
A152: AFB | B152: Alliance National Municipal Income Fund Inc
A153: AFC | B153: Allied Capital Corporation
A154: AFCB | B154: ATHENS BANCSHARES CORPORATION
A155: AFCE | B155: AFC Enterprises Inc.
A156: AFE | B156: American Financial Group Inc.
A157: AFF | B157: American International Group Inc.
A158: AFFM | B158: Affirmative Insurance Holdings Inc.
A159: AFFX | B159: Affymetrix Inc.
A160: AFFY | B160: Affymax Inc.
A161: AFG | B161: American Financial Group Inc.
A162: AFK | B162: MV AFRICA ETF
A163: AFL | B163: AFLAC Incorporated
A164: AFOP | B164: Alliance Fiber Optic Products Inc.
A165: AFSI | B165: AmTrust Financial Services Inc.
A166: AGA | B166: DB AGRI DBL SHRT ETN
A167: AGAM | B167: Acres Gaming
A168: AGC | B168: Advent Claymore Convertible Securities and Income Fund
A169: AGCO | B169: AGCO CP
A170: AGD | B170: Alpine Global Dynamic Dividend Fund
A171: AGEN | B171: Antigenics Inc.
A172: AGF | B172: DB AGRI LONG ETN
A173: AGG | B173: Ishares Lehman Aggregate Bond Fund
A174: AGII | B174: Argo Group International Holdings Ltd.
A175: AGL | B175: Angelica Corporation
A176: AGM | B176: Federal Agricultural Mortgage Corporation
A177: AGM.A | B177: Federal Agric Mtg Corp
A178: AGN | B178: Allergan Inc.
A179: AGNC | B179: American Capital Agency Corp.
A180: AGO | B180: Assured Guaranty Ltd
A181: AGO-B | B181: Assured Guaranty Ltd [B]
A182: AGO-E | B182: Assured Guaranty Ltd [E]
A183: AGO-F | B183: Assured Guaranty Ltd [F]
A184: AGP | B184: AMERIGROUP Corporation
A185: AGQ | B185: PROSHARES
A186: AGT | B186: Apollo Gold Corporation
A187: AGU | B187: Agrium Inc.
A188: AGX | B188: Argan Inc.
A189: AGYS | B189: Agilysys Inc.
A190: AGZ | B190: ISHARES
A191: AHC | B191: A.H. Belo Corporation
A192: AHCI | B192: Allied HealthCare International Inc.
A193: AHD | B193: Atlas Pipeline Holdings L.P.
A194: AHGP | B194: Alliance Holdings GP L.P.
A195: AHII | B195: Animal Health International Inc.
A196: AHL | B196: Aspen Insurance Holdings
A197: AHL.P | B197: Aspen Insurance Holdings
A198: AHL-A | B198: Aspen Insurance Holdings
A199: AHS | B199: AMN Healthcare Services Inc
A200: AHT | B200: Ashford Hospitality Trust Inc
... 7236 more rows

Sheet ClosingPrices (hidden)
A3: Month
A4: 1 | B4: 34.41 | C4: 23.47 | D4: 45.28 | E4: 245.69 | F4: 21.87 | G4: 4.03 | H4: 1.12 | I4: 59.36 | J4: 33.76 | K4: 26.45
A5: 2 | B5: 34.39 | C5: 22.62 | D5: 41.92 | E5: 235 | F5: 21.27 | G5: 3.49 | H5: 0.91 | I5: 56.72 | J5: 30.66 | K5: 26.47
A6: 3 | B6: 31.46 | C6: 21.04 | D6: 40.74 | E6: 204.62 | F6: 20.78 | G6: 3.28 | H6: 0.94 | I6: 52.7 | J6: 27.05 | K6: 26.45
A7: 4 | B7: 28.03 | C7: 20.59 | D7: 39.4 | E7: 192.06 | F7: 19.56 | G7: 3.34 | H7: 0.87 | I7: 52.07 | J7: 25.16 | K7: 26.01
A8: 5 | B8: 31.07 | C8: 19.49 | D8: 40.42 | E8: 210.73 | F8: 19.42 | G8: 3.94 | H8: 1.05 | I8: 55.71 | J8: 27.46 | K8: 26.41
A9: 6 | B9: 28.92 | C9: 18.76 | D9: 39.19 | E9: 199.91 | F9: 17.6 | G9: 3.2 | H9: 0.75 | I9: 54.04 | J9: 24.73 | K9: 25.85
A10: 7 | B10: 24.74 | C10: 17.84 | D10: 37.16 | E10: 188.5 | F10: 16.09 | G10: 3.15 | H10: 0.67 | I10: 50.45 | J10: 25.71 | K10: 25.41
A11: 8 | B11: 27.83 | C11: 19.89 | D11: 39.17 | E11: 185.35 | F11: 16.84 | G11: 3.97 | H11: 0.71 | I11: 52.53 | J11: 26 | K11: 25.5
A12: 9 | B12: 25.68 | C12: 20.68 | D12: 42.12 | E12: 168.21 | F12: 13.76 | G12: 4.51 | H12: 0.64 | I12: 47.81 | J12: 21.62 | K12: 25.34
A13: 10 | B13: 23.22 | C13: 19.42 | D13: 46.03 | E13: 163.39 | F13: 12.19 | G13: 4.82 | H13: 0.68 | I13: 49.74 | J13: 19.29 | K13: 25.73
A14: 11 | B14: 20.31 | C14: 19.73 | D14: 41.31 | E14: 142.43 | F14: 11.9 | G14: 4.59 | H14: 0.62 | I14: 43.37 | J14: 18.78 | K14: 24.98
A15: 12 | B15: 18.23 | C15: 20.43 | D15: 42.35 | E15: 135.81 | F15: 12.68 | G15: 4.72 | H15: 0.91 | I15: 44.42 | J15: 17.83 | K15: 24.06
A16: 13 | B16: 18.26 | C16: 19.13 | D16: 43.5 | E16: 125.83 | F16: 10.46 | G16: 4.8 | H16: 0.64 | I16: 38.3 | J16: 16.38 | K16: 24.37
A17: 14 | B17: 15.37 | C17: 17.79 | D17: 40.85 | E17: 105.12 | F17: 8.98 | G17: 3.6 | H17: 0.75 | I17: 32.64 | J17: 13.7 | K17: 24.19
A18: 15 | B18: 13.87 | C18: 15.24 | D18: 37.97 | E18: 89.31 | F18: 8.72 | G18: 3.15 | H18: 0.73 | I18: 28.11 | J18: 11.33 | K18: 24.67
A19: 16 | B19: 18.08 | C19: 17.79 | D19: 32.49 | E19: 90.13 | F19: 11.4 | G19: 3.01 | H19: 0.78 | I19: 30.36 | J19: 15.9 | K19: 24.85
A20: 17 | B20: 15.63 | C20: 20.51 | D20: 33.41 | E20: 85.35 | F20: 9.68 | G20: 3.02 | H20: 0.65 | I20: 33.06 | J20: 19.07 | K20: 23.62
A21: 18 | B21: 18.83 | C21: 18.55 | D21: 30.08 | E21: 92.67 | F21: 11.32 | G21: 2.51 | H21: 0.5 | I21: 30.11 | J21: 16.15 | K21: 22.72
A22: 19 | B22: 22.19 | C22: 16.06 | D22: 30.91 | E22: 107.59 | F22: 12.76 | G22: 3.01 | H22: 0.82 | I22: 32.43 | J22: 21.5 | K22: 22.27
A23: 20 | B23: 29.66 | C23: 17.72 | D23: 39.3 | E23: 113.66 | F23: 11.94 | G23: 4.65 | H23: 1.12 | I23: 40.83 | J23: 32.95 | K23: 21.04
A24: 21 | B24: 34.76 | C24: 20.81 | D24: 42.58 | E24: 169.53 | F24: 12.85 | G24: 4.57 | H24: 1.36 | I24: 48.65 | J24: 48.28 | K24: 23.58
A25: 22 | B25: 36.06 | C25: 18.52 | D25: 40.65 | E25: 158.95 | F25: 12.3 | G25: 4.13 | H25: 1.93 | J25: 46.25 | K25: 23.48
A26: 23 | B26: 35.54 | C26: 18.76 | D26: 38.42 | E26: 167.44 | F26: 10.4 | G26: 4.13 | H26: 1.8 | J26: 47.79 | K26: 23.05
A27: 24 | B27: 37.39 | C27: 20.33 | D27: 39.81 | E27: 188.75 | F27: 11.65 | G27: 6.98 | H27: 2.27 | J27: 56.21 | K27: 22.98
A28: 25 | B28: 30.21 | C28: 17.48 | D28: 34.26 | E28: 173.95 | F28: 14.4 | G28: 6.92 | H28: 2.27 | J28: 53.48 | K28: 23.07

Sheet Returns (hidden)
A1: Corresponding returns
A3: Time period | B3: A | C3: AAON | D3: AAP | E3: AAPL | F3: AAR | G3: AATI | H3: AAU | I3: AAXJ | J3: AB | K3: ABA
A4: 2 | B4: -0.0005812263877 | C4: -0.03621644653 | D4: -0.074204947 | E4: -0.04351011437 | F4: -0.02743484225 | G4: -0.1339950372 | H4: -0.1875 | I4: -0.04447439353 | J4: -0.09182464455 | K4: 0.0007561436673
A5: 3 | B5: -0.08519918581 | C5: -0.06984969054 | D5: -0.02814885496 | E5: -0.1292765957 | F5: -0.02303714151 | G5: -0.06017191977 | H5: 0.03296703297 | I5: -0.07087447109 | J5: -0.1177429876 | K5: -0.0007555723461
A6: 4 | B6: -0.1090273363 | C6: -0.0213878327 | D6: -0.03289150712 | E6: -0.06138207409 | F6: -0.05871029836 | G6: 0.01829268293 | H6: -0.07446808511 | I6: -0.0119544592 | J6: -0.06987060998 | K6: -0.01663516068
A7: 5 | B7: 0.1084552265 | C7: -0.05342399223 | D7: 0.02588832487 | E7: 0.09720920546 | F7: -0.007157464213 | G7: 0.1796407186 | H7: 0.2068965517 | I7: 0.06990589591 | J7: 0.09141494436 | K7: 0.0153787005
A8: 6 | B8: -0.06919858384 | C8: -0.03745510518 | D8: -0.03043047996 | E8: -0.0513453234 | F8: -0.09371781668 | G8: -0.1878172589 | H8: -0.2857142857 | I8: -0.02997666487 | J8: -0.0994173343 | K8: -0.02120408936
A9: 7 | B9: -0.1445366528 | C9: -0.04904051173 | D9: -0.0517989283 | E9: -0.05707568406 | F9: -0.08579545455 | G9: -0.015625 | H9: -0.1066666667 | I9: -0.06643227239 | J9: 0.03962798221 | K9: -0.0170212766
A10: 8 | B10: 0.1248989491 | C10: 0.1149103139 | D10: 0.05409041981 | E10: -0.01671087533 | F10: 0.04661280298 | G10: 0.2603174603 | H10: 0.05970149254 | I10: 0.04122893954 | J10: 0.01127965772 | K10: 0.003541912633
A11: 9 | B11: -0.07725476105 | C11: 0.03971845148 | D11: 0.07531273934 | E11: -0.09247369841 | F11: -0.1828978622 | G11: 0.1360201511 | H11: -0.0985915493 | I11: -0.08985341709 | J11: -0.1684615385 | K11: -0.006274509804
A12: 10 | B12: -0.09579439252 | C12: -0.06092843327 | D12: 0.0928300095 | E12: -0.02865465787 | F12: -0.1140988372 | G12: 0.06873614191 | H12: 0.0625 | I12: 0.04036812382 | J12: -0.1077705828 | K12: 0.01539068666
A13: 11 | B13: -0.1253229974 | C13: 0.01596292482 | D13: -0.1025418206 | E13: -0.1282820246 | F13: -0.0237899918 | G13: -0.04771784232 | H13: -0.08823529412 | I13: -0.1280659429 | J13: -0.02643856921 | K13: -0.02914885348
A14: 12 | B14: -0.1024126046 | C14: 0.03547896604 | D14: 0.0251755023 | E14: -0.04647897213 | F14: 0.06554621849 | G14: 0.02832244009 | H14: 0.4677419355 | I14: 0.02421028361 | J14: -0.0505857295 | K14: -0.03682946357
A15: 13 | B15: 0.001645639057 | C15: -0.06363191385 | D15: 0.02715466352 | E15: -0.07348501583 | F15: -0.1750788644 | G15: 0.01694915254 | H15: -0.2967032967 | I15: -0.1377757767 | J15: -0.08132361189 | K15: 0.01288445553
A16: 14 | B16: -0.1582694414 | C16: -0.07004704652 | D16: -0.06091954023 | E16: -0.1645871414 | F16: -0.1414913958 | G16: -0.25 | H16: 0.171875 | I16: -0.1477806789 | J16: -0.1636141636 | K16: -0.007386130488
A17: 15 | B17: -0.09759271308 | C17: -0.1433389545 | D17: -0.07050183599 | E17: -0.1503995434 | F17: -0.0289532294 | G17: -0.125 | H17: -0.02666666667 | I17: -0.1387867647 | J17: -0.1729927007 | K17: 0.01984291029
A18: 16 | B18: 0.3035328046 | C18: 0.1673228346 | D18: -0.1443244667 | E18: 0.009181502631 | F18: 0.3073394495 | G18: -0.04444444444 | H18: 0.06849315068 | I18: 0.08004268943 | J18: 0.4033539276 | K18: 0.007296311309
A19: 17 | B19: -0.1355088496 | C19: 0.1528948848 | D19: 0.02831640505 | E19: -0.05303450571 | F19: -0.150877193 | G19: 0.003322259136 | H19: -0.1666666667 | I19: 0.08893280632 | J19: 0.1993710692 | K19: -0.04949698189
A20: 18 | B20: 0.204734485 | C20: -0.09556313993 | D20: -0.09967075726 | E20: 0.08576449912 | F20: 0.1694214876 | G20: -0.1688741722 | H20: -0.2307692308 | I20: -0.08923169994 | J20: -0.1531200839 | K20: -0.03810330229
A21: 19 | B21: 0.1784386617 | C21: -0.1342318059 | D21: 0.02759308511 | E21: 0.1610014028 | F21: 0.1272084806 | G21: 0.1992031873 | H21: 0.64 | I21: 0.07705081368 | J21: 0.3312693498 | K21: -0.01980633803
A22: 20 | B22: 0.3366381253 | C22: 0.103362391 | D22: 0.2714331931 | E22: 0.0564178827 | F22: -0.06426332288 | G22: 0.5448504983 | H22: 0.3658536585 | I22: 0.2590194265 | J22: 0.5325581395 | K22: -0.05523125281
A23: 21 | B23: 0.1719487525 | C23: 0.1743792325 | D23: 0.0834605598 | E23: 0.4915537568 | F23: 0.07621440536 | G23: -0.01720430108 | H23: 0.2142857143 | I23: 0.1915258388 | J23: 0.4652503794 | K23: 0.1207224335
A24: 22 | B24: 0.03739930955 | C24: -0.1100432484 | D24: -0.04532644434 | E24: -0.06240783342 | F24: -0.04280155642 | G24: -0.09628008753 | H24: 0.4191176471 | J24: -0.04204639602 | K24: -0.004240882103
A25: 23 | B25: -0.01442041043 | C25: 0.01295896328 | D25: -0.05485854859 | E25: 0.05341302296 | F25: -0.1544715447 | G25: 0 | H25: -0.06735751295 | J25: 0.0332972973 | K25: -0.01831345826
A26: 24 | B26: 0.05205402364 | C26: 0.08368869936 | D26: 0.0361790734 | E26: 0.1272694697 | F26: 0.1201923077 | G26: 0.6900726392 | H26: 0.2611111111 | J26: 0.1761874869 | K26: -0.003036876356
A27: 25 | B27: -0.1920299545 | C27: -0.1401869159 | D27: -0.139412208 | E27: -0.07841059603 | F27: 0.2360515021 | G27: -0.008595988539 | H27: 0 | J27: -0.04856787049 | K27: 0.003916449086

Sheet SummaryMeasures (hidden)
A1: Summary measures for stock returns
A3: Stocks | B3: A | C3: AAON | D3: AAP | E3: AAPL | F3: AAR | G3: AATI | H3: AAU | I3: AAXJ | J3: AB | K3: ABA
A4: Means | B4: =AVERAGE(A) -> 0.004691536132 | C4: =AVERAGE(AAON) -> -0.007694473974 | D4: =AVERAGE(AAP) -> -0.00781651513 | E4: =AVERAGE(AAPL) -> -0.006487663066 | F4: =AVERAGE(AAR) -> -0.009416256707 | G4: =AVERAGE(AATI) -> 0.04125005331 | H4: =AVERAGE(AAU) -> 0.05588350166 | I4: =AVERAGE(AAXJ) -> -0.004146086181 | J4: =AVERAGE(AB) -> 0.03707639213 | K4: =AVERAGE(ABA) -> -0.005156422705
A5: StDevs | B5: =STDEV(A) -> 0.1497693297 | C5: =STDEV(AAON) -> 0.09779044755 | D5: =STDEV(AAP) -> 0.09010953935 | E5: =STDEV(AAPL) -> 0.1367574078 | F5: =STDEV(AAR) -> 0.1305038352 | G5: =STDEV(AATI) -> 0.2161153207 | H5: =STDEV(AAU) -> 0.2456724773 | I5: =STDEV(AAXJ) -> 0.1117940526 | J5: =STDEV(AB) -> 0.2077484469 | K5: =STDEV(ABA) -> 0.03367001545
A7: Correlations | B7: A | C7: AAON | D7: AAP | E7: AAPL | F7: AAR | G7: AATI | H7: AAU | I7: AAXJ | J7: AB | K7: ABA
A8: A | B8: =CORREL(A,A) -> 1 | C8: =CORREL(A,AAON) -> 0.379445144 | D8: =CORREL(A,AAP) -> 0.3496837152 | E8: =CORREL(A,AAPL) -> 0.6122132974 | F8: =CORREL(A,AAR) -> 0.4532907263 | G8: =CORREL(A,AATI) -> 0.409776737 | H8: =CORREL(A,AAU) -> 0.3597928865 | I8: =CORREL(A,AAXJ) -> 0.6385982319 | J8: =CORREL(A,AB) -> 0.697818954 | K8: =CORREL(A,ABA) -> 0.1132236615
A9: AAON | B9: =CORREL(AAON,A) -> 0.379445144 | C9: =CORREL(AAON,AAON) -> 1 | D9: =CORREL(AAON,AAP) -> 0.3805285919 | E9: =CORREL(AAON,AAPL) -> 0.4058606425 | F9: =CORREL(AAON,AAR) -> 0.0811680168 | G9: =CORREL(AAON,AATI) -> 0.3817168484 | H9: =CORREL(AAON,AAU) -> 0.03335121066 | I9: =CORREL(AAON,AAXJ) -> 0.6209023415 | J9: =CORREL(AAON,AB) -> 0.6165717332 | K9: =CORREL(AAON,ABA) -> 0.1222683618
A10: AAP | B10: =CORREL(AAP,A) -> 0.3496837152 | C10: =CORREL(AAP,AAON) -> 0.3805285919 | D10: =CORREL(AAP,AAP) -> 1 | E10: =CORREL(AAP,AAPL) -> 0.3515347242 | F10: =CORREL(AAP,AAR) -> -0.3442968549 | G10: =CORREL(AAP,AATI) -> 0.6621598961 | H10: =CORREL(AAP,AAU) -> 0.3705431622 | I10: =CORREL(AAP,AAXJ) -> 0.6527936303 | J10: =CORREL(AAP,AB) -> 0.4423853863 | K10: =CORREL(AAP,ABA) -> 0.007194888151
A11: AAPL | B11: =CORREL(AAPL,A) -> 0.6122132974 | C11: =CORREL(AAPL,AAON) -> 0.4058606425 | D11: =CORREL(AAPL,AAP) -> 0.3515347242 | E11: =CORREL(AAPL,AAPL) -> 1 | F11: =CORREL(AAPL,AAR) -> 0.3559658141 | G11: =CORREL(AAPL,AATI) -> 0.3314482453 | H11: =CORREL(AAPL,AAU) -> 0.3541150605 | I11: =CORREL(AAPL,AAXJ) -> 0.6804801601 | J11: =CORREL(AAPL,AB) -> 0.6838393098 | K11: =CORREL(AAPL,ABA) -> 0.5448915132
A12: AAR | B12: =CORREL(AAR,A) -> 0.4532907263 | C12: =CORREL(AAR,AAON) -> 0.0811680168 | D12: =CORREL(AAR,AAP) -> -0.3442968549 | E12: =CORREL(AAR,AAPL) -> 0.3559658141 | F12: =CORREL(AAR,AAR) -> 1 | G12: =CORREL(AAR,AATI) -> 0.1243641256 | H12: =CORREL(AAR,AAU) -> 0.3198468537 | I12: =CORREL(AAR,AAXJ) -> 0.3091904234 | J12: =CORREL(AAR,AB) -> 0.3592292992 | K12: =CORREL(AAR,ABA) -> 0.1608067435
A13: AATI | B13: =CORREL(AATI,A) -> 0.409776737 | C13: =CORREL(AATI,AAON) -> 0.3817168484 | D13: =CORREL(AATI,AAP) -> 0.6621598961 | E13: =CORREL(AATI,AAPL) -> 0.3314482453 | F13: =CORREL(AATI,AAR) -> 0.1243641256 | G13: =CORREL(AATI,AATI) -> 1 | H13: =CORREL(AATI,AAU) -> 0.4393512242 | I13: =CORREL(AATI,AAXJ) -> 0.6663098566 | J13: =CORREL(AATI,AB) -> 0.5154375418 | K13: =CORREL(AATI,ABA) -> -0.1139784536
A14: AAU | B14: =CORREL(AAU,A) -> 0.3597928865 | C14: =CORREL(AAU,AAON) -> 0.03335121066 | D14: =CORREL(AAU,AAP) -> 0.3705431622 | E14: =CORREL(AAU,AAPL) -> 0.3541150605 | F14: =CORREL(AAU,AAR) -> 0.3198468537 | G14: =CORREL(AAU,AATI) -> 0.4393512242 | H14: =CORREL(AAU,AAU) -> 1 | I14: =CORREL(AAU,AAXJ) -> 0.5497979681 | J14: =CORREL(AAU,AB) -> 0.4805983518 | K14: =CORREL(AAU,ABA) -> 0.05125510595
A15: AAXJ | B15: =CORREL(AAXJ,A) -> 0.6385982319 | C15: =CORREL(AAXJ,AAON) -> 0.6209023415 | D15: =CORREL(AAXJ,AAP) -> 0.6527936303 | E15: =CORREL(AAXJ,AAPL) -> 0.6804801601 | F15: =CORREL(AAXJ,AAR) -> 0.3091904234 | G15: =CORREL(AAXJ,AATI) -> 0.6663098566 | H15: =CORREL(AAXJ,AAU) -> 0.5497979681 | I15: =CORREL(AAXJ,AAXJ) -> 1 | J15: =CORREL(AAXJ,AB) -> 0.8636037493 | K15: =CORREL(AAXJ,ABA) -> 0.1308351927
A16: AB | B16: =CORREL(AB,A) -> 0.697818954 | C16: =CORREL(AB,AAON) -> 0.6165717332 | D16: =CORREL(AB,AAP) -> 0.4423853863 | E16: =CORREL(AB,AAPL) -> 0.6838393098 | F16: =CORREL(AB,AAR) -> 0.3592292992 | G16: =CORREL(AB,AATI) -> 0.5154375418 | H16: =CORREL(AB,AAU) -> 0.4805983518 | I16: =CORREL(AB,AAXJ) -> 0.8636037493 | J16: =CORREL(AB,AB) -> 1 | K16: =CORREL(AB,ABA) -> 0.1575869926
A17: ABA | B17: =CORREL(ABA,A) -> 0.1132236615 | C17: =CORREL(ABA,AAON) -> 0.1222683618 | D17: =CORREL(ABA,AAP) -> 0.007194888151 | E17: =CORREL(ABA,AAPL) -> 0.5448915132 | F17: =CORREL(ABA,AAR) -> 0.1608067435 | G17: =CORREL(ABA,AATI) -> -0.1139784536 | H17: =CORREL(ABA,AAU) -> 0.05125510595 | I17: =CORREL(ABA,AAXJ) -> 0.1308351927 | J17: =CORREL(ABA,AB) -> 0.1575869926 | K17: =CORREL(ABA,ABA) -> 1

Sheet Model
A1: Portfolio selection model (solution shown is when required return is halfway between minimum and maximum and maximum of stock returns)
A3: Stock | B3: A | C3: AAON | D3: AAP | E3: AAPL | F3: AAR | G3: AATI | H3: AAU | I3: AAXJ | J3: AB | K3: ABA | L3: Sum
A4: Weights | B4: 0 | C4: 0 | D4: 0 | E4: 0 | F4: 0 | G4: 4.156482927e-05 | H4: 0.9999584352 | I4: 0 | J4: 0 | K4: 0 | L4: =SUM(Weights) -> 1
A5: Means | B5: =AVERAGE(A) -> 0.004691536132 | C5: =AVERAGE(AAON) -> -0.007694473974 | D5: =AVERAGE(AAP) -> -0.00781651513 | E5: =AVERAGE(AAPL) -> -0.006487663066 | F5: =AVERAGE(AAR) -> -0.009416256707 | G5: =AVERAGE(AATI) -> 0.04125005331 | H5: =AVERAGE(AAU) -> 0.05588350166 | I5: =AVERAGE(AAXJ) -> -0.004146086181 | J5: =AVERAGE(AB) -> 0.03707639213 | K5: =AVERAGE(ABA) -> -0.005156422705
A7: Covariances | B7: A | C7: AAON | D7: AAP | E7: AAPL | F7: AAR | G7: AATI | H7: AAU | I7: AAXJ | J7: AB | K7: ABA
A8: A | B8: =COVAR(A,A) -> 0.02149623328 | C8: =COVAR(A,AAON) -> 0.005325800737 | D8: =COVAR(A,AAP) -> 0.00452257375 | E8: =COVAR(A,AAPL) -> 0.01201691803 | F8: =COVAR(A,AAR) -> 0.008490623618 | G8: =COVAR(A,AATI) -> 0.01271078393 | H8: =COVAR(A,AAU) -> 0.01268669672 | I8: =COVAR(A,AAXJ) -> 0.0106965778 | J8: =COVAR(A,AB) -> 0.02080750596 | K8: =COVAR(A,ABA) -> 0.0005471671191
A9: AAON | B9: =COVAR(AAON,A) -> 0.005325800737 | C9: =COVAR(AAON,AAON) -> 0.00916451448 | D9: =COVAR(AAON,AAP) -> 0.003213446632 | E9: =COVAR(AAON,AAPL) -> 0.005201646406 | F9: =COVAR(AAON,AAR) -> 0.0009927073508 | G9: =COVAR(AAON,AATI) -> 0.007731075476 | H9: =COVAR(AAON,AAU) -> 0.0007678583948 | I9: =COVAR(AAON,AAXJ) -> 0.00646079761 | J9: =COVAR(AAON,AB) -> 0.01200423322 | K9: =COVAR(AAON,ABA) -> 0.0003858072966
A10: AAP | B10: =COVAR(AAP,A) -> 0.00452257375 | C10: =COVAR(AAP,AAON) -> 0.003213446632 | D10: =COVAR(AAP,AAP) -> 0.007781407037 | E10: =COVAR(AAP,AAPL) -> 0.004151513501 | F10: =COVAR(AAP,AAR) -> -0.00388010693 | G10: =COVAR(AAP,AATI) -> 0.01235764724 | H10: =COVAR(AAP,AAU) -> 0.007861088263 | I10: =COVAR(AAP,AAXJ) -> 0.00640963122 | J10: =COVAR(AAP,AB) -> 0.00793644337 | K10: =COVAR(AAP,ABA) -> 2.091966504e-05
A11: AAPL | B11: =COVAR(AAPL,A) -> 0.01201691803 | C11: =COVAR(AAPL,AAON) -> 0.005201646406 | D11: =COVAR(AAPL,AAP) -> 0.004151513501 | E11: =COVAR(AAPL,AAPL) -> 0.01792331405 | F11: =COVAR(AAPL,AAR) -> 0.006088341733 | G11: =COVAR(AAPL,AATI) -> 0.009387906041 | H11: =COVAR(AAPL,AAU) -> 0.01140166712 | I11: =COVAR(AAPL,AAXJ) -> 0.0104881753 | J11: =COVAR(AAPL,AB) -> 0.01861912649 | K11: =COVAR(AAPL,ABA) -> 0.002404478034
A12: AAR | B12: =COVAR(AAR,A) -> 0.008490623618 | C12: =COVAR(AAR,AAON) -> 0.0009927073508 | D12: =COVAR(AAR,AAP) -> -0.00388010693 | E12: =COVAR(AAR,AAPL) -> 0.006088341733 | F12: =COVAR(AAR,AAR) -> 0.01632161555 | G12: =COVAR(AAR,AATI) -> 0.003361402707 | H12: =COVAR(AAR,AAU) -> 0.009827396017 | I12: =COVAR(AAR,AAXJ) -> 0.004060899243 | J12: =COVAR(AAR,AB) -> 0.009333604753 | K12: =COVAR(AAR,ABA) -> 0.0006771539901
A13: AATI | B13: =COVAR(AATI,A) -> 0.01271078393 | C13: =COVAR(AATI,AAON) -> 0.007731075476 | D13: =COVAR(AATI,AAP) -> 0.01235764724 | E13: =COVAR(AATI,AAPL) -> 0.009387906041 | F13: =COVAR(AATI,AAR) -> 0.003361402707 | G13: =COVAR(AATI,AATI) -> 0.04475975552 | H13: =COVAR(AATI,AAU) -> 0.02235478493 | I13: =COVAR(AATI,AAXJ) -> 0.01279689016 | J13: =COVAR(AATI,AB) -> 0.02217767337 | K13: =COVAR(AATI,ABA) -> -0.000794818974
A14: AAU | B14: =COVAR(AAU,A) -> 0.01268669672 | C14: =COVAR(AAU,AAON) -> 0.0007678583948 | D14: =COVAR(AAU,AAP) -> 0.007861088263 | E14: =COVAR(AAU,AAPL) -> 0.01140166712 | F14: =COVAR(AAU,AAR) -> 0.009827396017 | G14: =COVAR(AAU,AATI) -> 0.02235478493 | H14: =COVAR(AAU,AAU) -> 0.05784017583 | I14: =COVAR(AAU,AAXJ) -> 0.01460213607 | J14: =COVAR(AAU,AB) -> 0.02350678105 | K14: =COVAR(AAU,ABA) -> 0.0004063062947
A15: AAXJ | B15: =COVAR(AAXJ,A) -> 0.0106965778 | C15: =COVAR(AAXJ,AAON) -> 0.00646079761 | D15: =COVAR(AAXJ,AAP) -> 0.00640963122 | E15: =COVAR(AAXJ,AAPL) -> 0.0104881753 | F15: =COVAR(AAXJ,AAR) -> 0.004060899243 | G15: =COVAR(AAXJ,AATI) -> 0.01279689016 | H15: =COVAR(AAXJ,AAU) -> 0.01460213607 | I15: =COVAR(AAXJ,AAXJ) -> 0.01187301468 | J15: =COVAR(AAXJ,AB) -> 0.02061290085 | K15: =COVAR(AAXJ,ABA) -> 0.0005121702602
A16: AB | B16: =COVAR(AB,A) -> 0.02080750596 | C16: =COVAR(AB,AAON) -> 0.01200423322 | D16: =COVAR(AB,AAP) -> 0.00793644337 | E16: =COVAR(AB,AAPL) -> 0.01861912649 | F16: =COVAR(AB,AAR) -> 0.009333604753 | G16: =COVAR(AB,AATI) -> 0.02217767337 | H16: =COVAR(AB,AAU) -> 0.02350678105 | I16: =COVAR(AB,AAXJ) -> 0.02061290085 | J16: =COVAR(AB,AB) -> 0.04136110814 | K16: =COVAR(AB,ABA) -> 0.001056374875
A17: ABA | B17: =COVAR(ABA,A) -> 0.0005471671191 | C17: =COVAR(ABA,AAON) -> 0.0003858072966 | D17: =COVAR(ABA,AAP) -> 2.091966504e-05 | E17: =COVAR(ABA,AAPL) -> 0.002404478034 | F17: =COVAR(ABA,AAR) -> 0.0006771539901 | G17: =COVAR(ABA,AATI) -> -0.000794818974 | H17: =COVAR(ABA,AAU) -> 0.0004063062947 | I17: =COVAR(ABA,AAXJ) -> 0.0005121702602 | J17: =COVAR(ABA,AB) -> 0.001056374875 | K17: =COVAR(ABA,ABA) -> 0.001086433693
A19: Constraint on mean return
B20: =SUMPRODUCT(Weights,Means) -> 0.05588289342 | C20: >= | D20: 0.05588350073
A22: Portfolio variance
B23: =MMULT(Weights,MMULT(Covar,TRANSPOSE(Weights))) -> 0.05783722605
A25: Portfolio standard deviation
B26: =SQRT(PortfolioVariance) -> 0.2404937131

Sheet EffecientFrontier
A1: Efficient frontier
E2: Weights for these optimal portfolios
B3: PortStdev | C3: ReqdReturn | E3: A | F3: AAON | G3: AAP | H3: AAPL | I3: AAR | J3: AATI | K3: AAU | L3: AAXJ | M3: AB | N3: ABA
B5: 0.03158209426 | C5: -0.002886281349 | E5: 0 | F5: 0.01025807912 | G5: 0.03984491045 | H5: 0 | I5: 0.01077573081 | J5: 0.0405151386 | K5: 0.009303843914 | L5: 0 | M5: 0 | N5: 0.8893022971
B6: 0.04104780491 | C6: 0.003643694567 | E6: 0 | F6: 0 | G6: 0 | H6: 0 | I6: 0 | J6: 0.0935946768 | K6: 0.06924963251 | L6: 0 | M6: 0.005439509825 | N6: 0.8317161809
B7: 0.05861629999 | C7: 0.01017367002 | E7: 0 | F7: 0 | G7: 0 | H7: 0 | I7: 0 | J7: 0.1283658028 | K7: 0.1278006233 | L7: 0 | M7: 0.0372257416 | N7: 0.7066078324
B8: 0.07905333153 | C8: 0.01670364663 | E8: 0 | F8: 0 | G8: 0 | H8: 0 | I8: 0 | J8: 0.1631369347 | K8: 0.1863516383 | L8: 0 | M8: 0.0690119575 | N8: 0.5814994695
B9: 0.1006260268 | C9: 0.02323362231 | E9: 0 | F9: 0 | G9: 0 | H9: 0 | I9: 0 | J9: 0.1979080721 | K9: 0.2449026316 | L9: 0 | M9: 0.1007981773 | N9: 0.4563911191
B10: 0.1227370159 | C10: 0.029763598 | E10: 0 | F10: 0 | G10: 0 | H10: 0 | I10: 0 | J10: 0.232679247 | K10: 0.3034536052 | L10: 0 | M10: 0.1325843842 | N10: 0.3312827637
B11: 0.1451404928 | C11: 0.03629357368 | E11: 0 | F11: 0 | G11: 0 | H11: 0 | I11: 0 | J11: 0.267450379 | K11: 0.3620046157 | L11: 0 | M11: 0.1643705849 | N11: 0.2061744204
B12: 0.1677192892 | C12: 0.04282354936 | E12: 0 | F12: 0 | G12: 0 | H12: 0 | I12: 0 | J12: 0.3022215394 | K12: 0.420555618 | L12: 0 | M12: 0.1961567661 | N12: 0.08106607654
B13: 0.1922318693 | C13: 0.04935352504 | E13: 0 | F13: 0 | G13: 0 | H13: 0 | I13: 0 | J13: 0.3030533974 | K13: 0.5855387071 | L13: 0 | M13: 0.1114078955 | N13: 0
B14: 0.2404937131 | C14: 0.05588350073 | E14: 0 | F14: 0 | G14: 0 | H14: 0 | I14: 0 | J14: 4.156482927e-05 | K14: 0.9999584352 | L14: 0 | M14: 0 | N14: 0
